Workbook

Sheet Sheet1
D1: Wave (nm) | E1: %T | F1: %T n,k -> k,n | G1: % Diff
A2: n0 | B2: 1 | D2: 250 | E2: 1.608277 | F2: 4.204579 | G2: =$E2-$F2 -> -2.596303
A3: n1 | B3: 3 | D3: 300 | E3: 2.562227 | F3: 5.030207 | G3: -2.467980
A4: k1 | B4: 10 | D4: 350 | E4: 3.646778 | F4: 6.012518 | G4: -2.365740
A5: n2 | B5: 1.52 | D5: 400 | E5: 4.830312 | F5: 7.105396 | G5: =$E5-$F5 -> -2.275085
A6: Thick (nm) | B6: 5 | D6: =$D5+50 -> 450 | E6: 6.089079 | F6: 8.280184 | G6: =$E6-$F6 -> -2.191105
D7: =$D6+50 -> 500 | E7: 7.404380 | F7: 9.516273 | G7: =$E7-$F7 -> -2.111893
D8: =$D7+50 -> 550 | E8: 8.761016 | F8: 10.797605 | G8: =$E8-$F8 -> -2.036589
D9: =$D8+50 -> 600 | E9: 10.146413 | F9: 12.111152 | G9: =$E9-$F9 -> -1.964739
D10: =$D9+50 -> 650 | E10: 11.550067 | F10: 13.446131 | G10: =$E10-$F10 -> -1.896064
D11: =$D10+50 -> 700 | E11: 12.963177 | F11: 14.793537 | G11: =$E11-$F11 -> -1.830361
D12: =$D11+50 -> 750 | E12: 14.378367 | F12: 16.145832 | G12: =$E12-$F12 -> -1.767465
D13: =$D12+50 -> 800 | E13: 15.789474 | F13: 17.496711 | G13: =$E13-$F13 -> -1.707237
D14: =$D13+50 -> 850 | E14: 17.191372 | F14: 18.840921 | G14: =$E14-$F14 -> -1.649550
D15: =$D14+50 -> 900 | E15: 18.579823 | F15: 20.174108 | G15: =$E15-$F15 -> -1.594285
D16: =$D15+50 -> 950 | E16: 19.951357 | F16: 21.492689 | G16: =$E16-$F16 -> -1.541332
D17: =$D16+50 -> 1000 | E17: 21.303156 | F17: 22.793742 | G17: =$E17-$F17 -> -1.490587
D18: =$D17+50 -> 1050 | E18: 22.632966 | F18: 24.074916 | G18: =$E18-$F18 -> -1.441950
D19: =$D18+50 -> 1100 | E19: 23.939014 | F19: 25.334340 | G19: =$E19-$F19 -> -1.395326
D20: =$D19+50 -> 1150 | E20: 25.219937 | F20: 26.570562 | G20: =$E20-$F20 -> -1.350625
D21: =$D20+50 -> 1200 | E21: 26.474721 | F21: 27.782481 | G21: =$E21-$F21 -> -1.307760
D22: =$D21+50 -> 1250 | E22: 27.702649 | F22: 28.969298 | G22: =$E22-$F22 -> -1.266649
D23: =$D22+50 -> 1300 | E23: 28.903253 | F23: 30.130464 | G23: =$E23-$F23 -> -1.227211
D24: =$D23+50 -> 1350 | E24: 30.076276 | F24: 31.265648 | G24: =$E24-$F24 -> -1.189372
D25: =$D24+50 -> 1400 | E25: 31.221639 | F25: 32.374697 | G25: =$E25-$F25 -> -1.153058
D26: =$D25+50 -> 1450 | E26: 32.339408 | F26: 33.457609 | G26: =$E26-$F26 -> -1.118201
D27: =$D26+50 -> 1500 | E27: 33.429772 | F27: 34.514506 | G27: =$E27-$F27 -> -1.084735
D28: =$D27+50 -> 1550 | E28: 34.493019 | F28: 35.545615 | G28: =$E28-$F28 -> -1.052595
D29: =$D28+50 -> 1600 | E29: 35.529522 | F29: 36.551245 | G29: =$E29-$F29 -> -1.021723
D30: =$D29+50 -> 1650 | E30: 36.539715 | F30: 37.531775 | G30: =$E30-$F30 -> -0.992060
D31: =$D30+50 -> 1700 | E31: 37.524088 | F31: 38.487640 | G31: =$E31-$F31 -> -0.963552
D32: =$D31+50 -> 1750 | E32: 38.483171 | F32: 39.419316 | G32: =$E32-$F32 -> -0.936146
D33: =$D32+50 -> 1800 | E33: 39.417522 | F33: 40.327314 | G33: =$E33-$F33 -> -0.909792
D34: =$D33+50 -> 1850 | E34: 40.327726 | F34: 41.212170 | G34: =$E34-$F34 -> -0.884443
D35: =$D34+50 -> 1900 | E35: 41.214382 | F35: 42.074436 | G35: =$E35-$F35 -> -0.860054
D36: =$D35+50 -> 1950 | E36: 42.078098 | F36: 42.914680 | G36: =$E36-$F36 -> -0.836582
D37: =$D36+50 -> 2000 | E37: 42.919488 | F37: 43.733473 | G37: =$E37-$F37 -> -0.813985
D38: =$D37+50 -> 2050 | E38: 43.739167 | F38: 44.531392 | G38: =$E38-$F38 -> -0.792225
D39: =$D38+50 -> 2100 | E39: 44.537747 | F39: 45.309011 | G39: =$E39-$F39 -> -0.771264
D40: =$D39+50 -> 2150 | E40: 45.315834 | F40: 46.066902 | G40: =$E40-$F40 -> -0.751068
D41: =$D40+50 -> 2200 | E41: 46.074028 | F41: 46.805630 | G41: =$E41-$F41 -> -0.731602
D42: =$D41+50 -> 2250 | E42: 46.812918 | F42: 47.525752 | G42: =$E42-$F42 -> -0.712834
D43: =$D42+50 -> 2300 | E43: 47.533084 | F43: 48.227818 | G43: =$E43-$F43 -> -0.694734
D44: =$D43+50 -> 2350 | E44: 48.235091 | F44: 48.912365 | G44: =$E44-$F44 -> -0.677274
D45: =$D44+50 -> 2400 | E45: 48.919494 | F45: 49.579919 | G45: =$E45-$F45 -> -0.660425
D46: =$D45+50 -> 2450 | E46: 49.586833 | F46: 50.230993 | G46: =$E46-$F46 -> -0.644160
D47: =$D46+50 -> 2500 | E47: 50.237632 | F47: 50.866089 | G47: =$E47-$F47 -> -0.628457
